fUST/lending_fUST_20251011
["ID","MTS","AMOUNT","RATE_DAILY","PERIOD"]
[390854907,1760178717151,-151.0,0.00024657,7]
[390854908,1760178717160,-520.58486382,0.00024657,9]
[390854909,1760178717169,-5291.47,0.00024657,9]
[390854910,1760178717178,-382.039075,0.00024657,7]
[390854911,1760178717187,-1330.59,0.00024657,9]
[390854912,1760178717195,-151.0,0.00024657,7]
[390854913,1760178717205,-5291.47,0.00024657,9]
[390854914,1760178717214,-151.0,0.00024657,7]
[390854915,1760178717223,-1330.59,0.00024657,9]
[390854916,1760178717233,-5291.47,0.00024657,9]
[390854917,1760178717242,-382.039075,0.00024657,7]
[390854918,1760178717252,-151.0,0.00024657,7]
[390854919,1760178717261,-151.0,0.00024657,7]
[390854920,1760178717270,-5291.47,0.00024657,9]
[390854921,1760178717279,-1330.59,0.00024657,9]
[390854922,1760178717288,-500.0,0.00024657,9]
[390854923,1760178717297,-382.039075,0.00024657,7]
[390854924,1760178717306,-153.344226,0.00024657,7]
[390854925,1760178717315,-1330.59,0.00024657,9]
[390854926,1760178717325,-500.0,0.00024657,9]
[390854927,1760178717334,-5291.47,0.00024657,9]
[390854928,1760178717344,-151.0,0.00024657,7]
[390854929,1760178717353,-382.039075,0.00024657,7]
[390854930,1760178717363,-1330.59,0.00024657,9]
[390854931,1760178717373,-482.40120697,0.00024657,9]
[390854932,1760178717381,-5291.49321278,0.00024657,9]
[390854933,1760178717390,-151.0,0.00024657,7]
[390854934,1760178717399,-1330.59,0.00024657,9]
[390854935,1760178717409,-382.039075,0.00024657,7]
[390854936,1760178717418,-151.0,0.00024657,7]
[390854937,1760178717427,-1330.59,0.00024657,9]
[390854938,1760178717436,-151.0,0.00024657,7]
[390854939,1760178717445,-1330.59,0.00024657,9]
[390854940,1760178717454,-382.039075,0.00024657,7]
[390854941,1760178717463,-151.0,0.00024657,7]
[390854942,1760178717472,-500.0,0.00024657,9]
[390854943,1760178717481,-1330.59,0.00024657,9]
[390854944,1760178717490,-151.0,0.00024657,7]
[390854945,1760178717499,-382.039075,0.00024657,7]
[390854946,1760178717508,-151.0,0.00024657,7]
[390854947,1760178717517,-1330.59,0.00024657,9]
[390854948,1760178717526,-151.0,0.00024657,7]
[390854949,1760178717535,-151.0,0.00024657,7]
[390854950,1760178717544,-382.039075,0.00024657,7]
[390854951,1760178717552,-1330.59,0.00024657,9]
[390854952,1760178717561,-1330.59,0.00024657,9]
[390854953,1760178717570,-151.0,0.00024657,7]
[390854954,1760178717579,-151.0,0.00024657,7]
[390854955,1760178717591,-382.039075,0.00024657,7]
[390854956,1760178717600,-1330.59,0.00024657,9]
[390854957,1760178717609,-151.0,0.00024657,7]
[390854958,1760178717618,-151.0,0.00024657,7]
[390854959,1760178717628,-382.039075,0.00024657,7]
[390854960,1760178717636,-1330.59,0.00024657,9]
[390854961,1760178717645,-151.0,0.00024657,7]
[390854962,1760178717654,-193.29991,0.00024657,7]
[390854963,1760178717663,-382.039075,0.00024657,7]
[390854964,1760178717672,-1330.59,0.00024657,9]
[390854965,1760178717680,-681.84,0.00024657,9]
[390854966,1760178717690,-1330.59,0.00024657,9]
[390854967,1760178717704,-151.0,0.00024657,7]
[390854968,1760178717713,-382.039075,0.00024657,7]
[390854969,1760178717722,-1330.59,0.00024657,9]
[390854970,1760178717731,-681.84,0.00024657,9]
[390854971,1760178717741,-151.0,0.00024657,7]
[390854972,1760178717749,-382.039075,0.00024657,7]
[390854973,1760178717758,-1330.59,0.00024657,9]
[390854974,1760178717767,-681.84,0.00024657,9]
[390854975,1760178717775,-151.0,0.00024657,7]
[390854976,1760178717787,-1330.59,0.00024657,9]
[390854977,1760178717796,-382.039079,0.00024657,7]
[390854978,1760178717805,-681.84,0.00024657,9]
[390854979,1760178717814,-1330.59,0.00024657,9]
[390854980,1760178717823,-681.84,0.00024657,9]
[390854981,1760178717833,-162.666953,0.00024657,7]
[390854982,1760178717842,-1330.59,0.00024657,9]
[390854983,1760178717851,-681.84,0.00024657,9]
[390854984,1760178717862,-1330.59,0.00024657,9]
[390854985,1760178717871,-681.84,0.00024657,9]
[390854986,1760178717880,-500.0,0.00024657,9]
[390854987,1760178717889,-681.84,0.00024657,9]
[390854988,1760178717898,-1330.59,0.00024657,9]
[390854989,1760178717908,-500.0,0.00024657,9]
[390854990,1760178717918,-681.84,0.00024657,9]
[390854991,1760178717928,-1330.81,0.00024657,9]
[390854992,1760178717937,-500.0,0.00024657,9]
[390854993,1760178717947,-681.84,0.00024657,9]
[390854994,1760178717956,-500.0,0.00024657,9]
[390854995,1760178717966,-500.0,0.00024657,9]
[390854996,1760178717976,-681.84,0.00024657,9]
[390854997,1760178717985,-500.0,0.00024657,9]
[390854998,1760178717994,-681.84,0.00024657,9]
[390854999,1760178718004,-500.0,0.00024657,9]
[390855000,1760178718013,-681.84,0.00024657,9]
[390855001,1760178718022,-500.0,0.00024657,9]
[390855002,1760178718033,-500.0,0.00024657,9]
[390855003,1760178718042,-681.84,0.00024657,9]
[390855004,1760178718052,-500.0,0.00024657,9]
[390855005,1760178718061,-500.0,0.00024657,9]
[390855006,1760178718070,-500.0,0.00024657,9]
[390855007,1760178718079,-681.84,0.00024657,9]
[390855008,1760178718088,-500.0,0.00024657,9]
[390855009,1760178718097,-500.0,0.00024657,9]
[390855010,1760178718106,-1172.5,0.00024657,9]
[390855011,1760178718117,-681.84,0.00024657,9]
[390855012,1760178718125,-500.0,0.00024657,9]
[390855013,1760178718134,-500.0,0.00024657,9]
[390855014,1760178718144,-1172.5,0.00024657,9]
[390855015,1760178718153,-681.84,0.00024657,9]
[390855016,1760178718162,-500.0,0.00024657,9]
[390855017,1760178718171,-352.63508278,0.00024657,9]
[390855018,1760178718180,-1172.5,0.00024657,9]
[390855019,1760178718190,-681.84,0.00024657,9]
[390855020,1760178718200,-500.0,0.00024657,9]
[390855021,1760178718209,-1172.5,0.00024657,9]
[390855022,1760178718218,-681.84,0.00024657,9]
[390855023,1760178718227,-500.0,0.00024657,9]
[390855024,1760178718236,-1172.5,0.00024657,9]
[390855025,1760178718245,-681.84,0.00024657,9]
[390855026,1760178718254,-500.0,0.00024657,9]
[390855027,1760178718264,-1172.5,0.00024657,9]
[390855028,1760178718272,-681.84,0.00024657,9]
[390855029,1760178718281,-500.0,0.00024657,9]
[390855030,1760178718291,-1172.5,0.00024657,9]
[390855031,1760178718300,-681.84,0.00024657,9]
[390855032,1760178718309,-500.0,0.00024657,9]
[390855033,1760178718318,-1172.5,0.00024657,9]
[390855034,1760178718327,-681.84,0.00024657,9]
[390855035,1760178718336,-500.0,0.00024657,9]
[390855036,1760178718345,-500.0,0.00024657,9]
[390855037,1760178718354,-770.08,0.00024657,9]
[390855038,1760178718364,-1172.5,0.00024657,9]
[390855039,1760178718373,-681.94,0.00024657,9]
[390855040,1760178718382,-500.0,0.00024657,9]
[390855041,1760178718391,-500.0,0.00024657,9]
[390855042,1760178718400,-1172.5,0.00024657,9]
[390855043,1760178718409,-770.08,0.00024657,9]
[390855044,1760178718418,-216.12,0.00024657,9]
[390855045,1760178718428,-500.0,0.00024657,9]
[390855046,1760178718437,-1172.5,0.00024657,9]
[390855047,1760178718450,-500.0,0.00024657,9]
[390855048,1760178718459,-770.08,0.00024657,9]
[390855049,1760178718468,-500.0,0.00024657,9]
[390855050,1760178718478,-1172.5,0.00024657,9]
[390855051,1760178718487,-500.0,0.00024657,9]
[390855052,1760178718496,-770.08,0.00024657,9]
[390855053,1760178718506,-500.0,0.00024657,9]
[390855054,1760178718515,-1172.5,0.00024657,9]
[390855055,1760178718524,-500.0,0.00024657,9]
[390855056,1760178718533,-500.0,0.00024657,9]
[390855057,1760178718542,-1172.5,0.00024657,9]
[390855058,1760178718551,-770.08,0.00024657,9]
[390855059,1760178718560,-500.0,0.00024657,9]
[390855060,1760178718569,-500.0,0.00024657,9]
[390855061,1760178718578,-500.0,0.00024657,9]
[390855062,1760178718591,-500.0,0.00024657,9]
[390855063,1760178718599,-1172.5,0.00024657,9]
[390855064,1760178718609,-770.08,0.00024657,9]
[390855065,1760178718620,-500.0,0.00024657,9]
[390855066,1760178718629,-500.0,0.00024657,9]
[390855067,1760178718638,-1172.5,0.00024657,9]
[390855068,1760178718648,-770.08,0.00024657,9]
[390855069,1760178718657,-500.0,0.00024657,9]
[390855070,1760178718667,-500.0,0.00024657,9]
[390855071,1760178718676,-500.0,0.00024657,9]
[390855072,1760178718685,-1172.5,0.00024657,9]
[390855073,1760178718696,-770.08,0.00024657,9]
[390855074,1760178718705,-500.0,0.00024657,9]
[390855075,1760178718717,-500.0,0.00024657,9]
[390855076,1760178718726,-491.32978067,0.00024657,9]
[390855077,1760178718735,-1172.5,0.00024657,9]
[390855078,1760178718746,-770.08,0.00024657,9]
[390855079,1760178718891,-500.0,0.00024657,9]
[390855080,1760178718902,-1120.14,0.00024657,9]
[390855081,1760178718911,-500.0,0.00024657,9]
[390855082,1760178718920,-1172.5,0.00024657,9]
[390855083,1760178718929,-770.08,0.00024657,9]
[390855084,1760178718938,-500.0,0.00024657,9]
[390855085,1760178718947,-1120.14,0.00024657,9]
[390855086,1760178718956,-500.98264154,0.00024657,9]
[390855087,1760178718965,-770.08,0.00024657,9]
[390855088,1760178718975,-1172.5,0.00024657,9]
[390855089,1760178718985,-500.0,0.00024657,9]
[390855090,1760178718994,-1120.14,0.00024657,9]
[390855091,1760178719003,-770.08,0.00024657,9]
[390855092,1760178719013,-1172.5,0.00024657,9]
[390855093,1760178719022,-1120.14,0.00024657,9]
[390855094,1760178719032,-770.08,0.00024657,9]
[390855095,1760178719041,-500.0,0.00024657,9]
[390855096,1760178719051,-1172.5,0.00024657,9]
[390855097,1760178719060,-1120.14,0.00024657,9]
[390855098,1760178719070,-770.08,0.00024657,9]
[390855099,1760178719080,-500.0,0.00024657,9]
[390855100,1760178719090,-1172.5,0.00024657,9]
[390855101,1760178719099,-1120.14,0.00024657,9]
[390855102,1760178719109,-770.08,0.00024657,9]
[390855103,1760178719120,-500.0,0.00024657,9]
[390855104,1760178719130,-1172.68464053,0.00024657,9]
[390855105,1760178719140,-1120.14,0.00024657,9]
[390855106,1760178719150,-770.08,0.00024657,9]
[390855107,1760178719159,-500.0,0.00024657,9]
[390855108,1760178719168,-500.0,0.00024657,9]
[390855109,1760178719177,-500.0,0.00024657,9]
[390855110,1760178719187,-500.0,0.00024657,9]
[390855111,1760178719196,-1120.14,0.00024657,9]
[390855112,1760178719206,-770.08,0.00024657,9]
[390855113,1760178719215,-500.0,0.00024657,9]
[390855114,1760178719224,-500.0,0.00024657,9]
[390855115,1760178719233,-500.0,0.00024657,9]
[390855116,1760178719243,-770.08,0.00024657,9]
[390855117,1760178719252,-500.0,0.00024657,9]
[390855118,1760178719262,-1120.14,0.00024657,9]
[390855119,1760178719272,-500.0,0.00024657,9]
[390855120,1760178719282,-500.0,0.00024657,9]
[390855121,1760178719291,-770.08,0.00024657,9]
[390855122,1760178719299,-1120.14,0.00024657,9]
[390855123,1760178719309,-500.0,0.00024657,9]
[390855124,1760178719318,-500.0,0.00024657,9]
[390855125,1760178719327,-500.0,0.00024657,9]
[390855126,1760178719336,-1120.14,0.00024657,9]
[390855127,1760178719345,-770.08,0.00024657,9]
[390855128,1760178719354,-500.0,0.00024657,9]
[390855129,1760178719364,-770.08,0.00024657,9]
[390855130,1760178719373,-1120.14,0.00024657,9]
[390855131,1760178719383,-500.0,0.00024657,9]
[390855132,1760178719392,-500.0,0.00024657,9]
[390855133,1760178719401,-500.0,0.00024657,9]
[390855134,1760178719410,-770.08,0.00024657,9]
[390855135,1760178719419,-500.0,0.00024657,9]
[390855136,1760178719427,-500.0,0.00024657,9]
[390855137,1760178719436,-500.0,0.00024657,9]
[390855138,1760178719445,-770.08,0.00024657,9]
[390855139,1760178719454,-500.0,0.00024657,9]
[390855140,1760178719463,-1120.14,0.00024657,9]
[390855141,1760178719472,-770.16320441,0.00024657,9]
[390855142,1760178719481,-500.0,0.00024657,9]
[390855143,1760178719490,-500.0,0.00024657,9]
[390855144,1760178719499,-1120.14,0.00024657,9]
[390855145,1760178719511,-500.0,0.00024657,9]
[390855146,1760178719520,-500.0,0.00024657,9]
[390855147,1760178719530,-1120.14,0.00024657,9]
[390855148,1760178719539,-500.0,0.00024657,9]
[390855149,1760178719548,-500.0,0.00024657,9]
[390855150,1760178719557,-1120.14,0.00024657,9]
[390855151,1760178719566,-500.0,0.00024657,9]
[390855152,1760178719576,-1120.14,0.00024657,9]
[390855153,1760178719584,-500.0,0.00024657,9]
[390855154,1760178719594,-500.0,0.00024657,9]
[390855155,1760178719603,-1120.14,0.00024657,9]
[390855156,1760178719613,-500.0,0.00024657,9]
[390855157,1760178719622,-325.11318004,0.00024657,9]
[390855158,1760178719632,-502.36432456,0.00024657,9]
[390855159,1760178719641,-1120.14,0.00024657,9]
[390855160,1760178719650,-1120.14,0.00024657,9]
[390855161,1760178719659,-1120.14,0.00024657,9]
[390855162,1760178719670,-500.0,0.00024657,9]
[390855163,1760178719679,-500.0,0.00024657,9]
[390855164,1760178719688,-1120.14,0.00024657,9]
[390855165,1760178719703,-501.03081682,0.00024657,9]
[390855166,1760178719712,-1120.14,0.00024657,9]
[390855167,1760178719721,-1120.18,0.00024657,9]
[390855168,1760178719730,-204.135822,0.00024657,7]
[390855169,1760178719739,-204.135822,0.00024657,7]
[390855170,1760178719748,-204.135822,0.00024657,7]
[390855171,1760178719757,-204.135822,0.00024657,7]
[390855172,1760178719767,-500.0,0.00024657,9]
[390855173,1760178719776,-500.0,0.00024657,9]
[390855174,1760178719788,-204.135822,0.00024657,7]
[390855175,1760178719798,-500.0,0.00024657,9]
[390855176,1760178719808,-500.0,0.00024657,9]
[390855177,1760178719818,-500.0,0.00024657,9]
[390855178,1760178719828,-500.0,0.00024657,9]
[390855179,1760178719837,-614.95,0.00024657,9]
[390855180,1760178719847,-204.135822,0.00024657,7]
[390855181,1760178719856,-204.135822,0.00024657,7]
[390855182,1760178719868,-500.0,0.00024657,9]
[390855183,1760178719877,-204.135822,0.00024657,7]
[390855184,1760178719887,-204.135822,0.00024657,7]
[390855185,1760178719896,-151.0,0.00024658,7]
[390855186,1760178719905,-160.478811,0.00024658,7]
[390855187,1760178719914,-500.0,0.00024673,2]
[390855188,1760178719923,-500.0,0.00024673,2]
[390855189,1760178719933,-500.0,0.00024673,2]
[390855190,1760178719942,-500.0,0.00024673,2]
[390855191,1760178719951,-500.0,0.00024673,2]
[390855192,1760178719961,-500.0,0.00024673,2]
[390855193,1760178719970,-500.28208769,0.00024673,2]
[390855194,1760178719979,-635.17506224,0.00024673,2]
[390855195,1760178719989,-215.12409197,0.00024673,2]
[390855196,1760178719998,-500.33211956,0.00024673,2]
[390855197,1760178720007,-500.0,0.00024673,2]
[390855198,1760178720016,-163.24919086,0.00024673,2]
[390855199,1760178720025,-500.0,0.00024673,2]
[390855200,1760178720035,-500.0,0.00024673,2]
[390855201,1760178720044,-500.54225061,0.00024673,2]
[390855202,1760178720054,-500.1912246,0.00024673,2]
[390855203,1760178720063,-500.0,0.00024673,2]
[390855204,1760178720072,-200.32173389,0.00024673,2]
[390855205,1760178720081,-500.0,0.00024673,2]
[390855206,1760178720090,-500.0,0.00024673,2]
[390855207,1760178720107,-500.0,0.00024673,2]
[390855208,1760178720126,-503.59739427,0.00024673,2]
[390855209,1760178720141,-177.28429681,0.00024673,2]
[390855210,1760178720158,-501.07479901,0.00024673,2]
[390855211,1760178720176,-500.0,0.00024673,2]
[390855212,1760178720193,-501.83601774,0.00024673,2]
[390855213,1760178720209,-257.23543379,0.00024673,2]
[390855214,1760178720227,-500.56035074,0.00024673,2]
[390855215,1760178720243,-500.0,0.00024673,2]
[390855216,1760178720257,-299.23514147,0.00024673,2]
[390855217,1760178720274,-500.0,0.00024673,2]
[390855218,1760178720293,-248.44886256,0.00024673,2]
[390855219,1760178720313,-200.43040235,0.00024673,2]
[390855220,1760178720324,-500.0,0.00024673,2]
[390855221,1760178720339,-245.15009123,0.00024673,2]
[390855222,1760178720356,-432.67824504,0.00024673,2]
[390855223,1760178720372,-500.34237924,0.00024673,2]
[390855224,1760178720388,-503.50225149,0.00024673,2]
[390855225,1760178720401,-500.0,0.00024673,2]
[390855226,1760178720416,-500.0,0.00024673,2]
[390855227,1760178720429,-500.0,0.00024673,2]
[390855228,1760178720443,-500.0,0.00024673,2]
[390855229,1760178720457,-500.0,0.00024673,2]
[390855230,1760178720471,-500.0,0.00024673,2]
[390855231,1760178720486,-500.0,0.00024673,2]
[390855232,1760178720500,-282.5801296,0.00024673,2]
[390855233,1760178720514,-502.59945279,0.00024673,2]
[390855234,1760178720527,-500.0,0.00024673,2]
[390855235,1760178720541,-500.0,0.00024673,2]
[390855236,1760178720556,-500.0,0.00024673,2]
[390855237,1760178720570,-500.0,0.00024673,2]
[390855238,1760178720585,-500.0,0.00024673,2]
[390855239,1760178720596,-500.84319843,0.00024673,2]
[390855240,1760178720606,-599.90783163,0.00024673,2]
[390855241,1760178720618,-500.0,0.00024673,2]
[390855242,1760178720628,-469.35315239,0.00024673,2]
[390855243,1760178720637,-160.0,0.00024686,2]
[390855244,1760178720646,-298.08050243,0.00024686,2]
[390855245,1760178720655,-181.01326445,0.00024704,7]
[390855246,1760178720664,-170.715,0.00024704,7]
[390855247,1760178720674,-198.0,0.00024712,7]
[390855248,1760178720683,-151.0,0.00024712,7]
[390855249,1760178720693,-151.0,0.00024712,2]
[390855250,1760178720702,-151.0,0.00024712,2]
[390855251,1760178720716,-151.0,0.00024712,2]
[390855252,1760178720725,-628.19068344,0.00024712,2]
[390855253,1760178720735,-151.0,0.00024712,2]
[390855254,1760178720745,-151.0,0.00024712,2]
[390855255,1760178720754,-151.0,0.00024712,2]
[390855256,1760178720763,-500.0,0.00024712,2]
[390855257,1760178720772,-534.23281477,0.00024712,2]
[390855258,1760178720783,-2609.37557469,0.0002472,2]
[390855259,1760178720792,-500.0,0.00024731,5]
[390855260,1760178720802,-198.61891148,0.00024767,7]
[390855261,1760178720812,-151.0,0.00024767,2]
[390855262,1760178720822,-151.0,0.00024767,2]
[390855263,1760178720831,-151.0,0.00024767,2]
[390855264,1760178720840,-151.0,0.00024767,2]
[390855265,1760178720849,-151.0,0.00024767,2]
[390855266,1760178720858,-282.44633068,0.00024767,2]
[390855267,1760178720869,-287.67860669,0.00024767,2]
[390855268,1760178720878,-6279.0940611,0.00024778,2]
[390855269,1760178720888,-52351.6151644,0.000248,2]
[390855270,1760178720898,-151.0,0.00024821,2]
[390855271,1760178720907,-151.0,0.00024821,2]
[390855272,1760178720916,-207.97664729,0.00024821,2]
[390855273,1760178720925,-151.0,0.00024821,2]
[390855274,1760178720934,-151.0,0.00024821,2]
[390855275,1760178720943,-150.0,0.00024873,2]
[390855276,1760178720952,-150.0,0.00024873,2]
[390855277,1760178720962,-198.0,0.00024876,2]
[390855278,1760178720971,-261.78584438,0.00024876,2]
[390855279,1760178720981,-157.17235922,0.00024876,2]
[390855280,1760178720991,-245.0,0.00024876,2]
[390855281,1760178721000,-151.0,0.000249,7]
[390855282,1760178721009,-151.0,0.000249,7]
[390855283,1760178721018,-151.0,0.000249,7]
[390855284,1760178721028,-151.0,0.000249,7]
[390855285,1760178721037,-151.0,0.000249,7]
[390855286,1760178721047,-364177.942573,0.000249,2]
[390855287,1760178721057,-500.0,0.00025005,5]
[390855288,1760178721066,-166.46220105,0.00025094,5]
[390855289,1760178721075,-160.03104987,0.00025094,5]
[390855290,1760178721085,-3996.43224542,0.00025169,2]
[390855291,1760178721094,-1000.0,0.00025221,2]
[390855292,1760178721104,-1001.0330621,0.00025221,2]
[390855293,1760178721116,-500.51742862,0.00025221,2]
[390855294,1760178721125,-500.0,0.00025221,2]
[390855295,1760178721134,-502.93689473,0.00025221,2]
[390855296,1760178721144,-1000.0,0.00025221,2]
[390855297,1760178721153,-500.6605246,0.00025221,2]
[390855298,1760178721163,-1001.74003491,0.00025221,2]
[390855299,1760178721173,-1000.0,0.00025221,2]
[390855300,1760178721182,-500.0,0.00025221,2]
[390855301,1760178721192,-1000.0,0.00025221,2]
[390855302,1760178721202,-669.1166714,0.00025221,2]
[390855303,1760178721211,-500.0,0.00025221,2]
[390855304,1760178721221,-1000.0,0.00025221,2]
[390855305,1760178721230,-1000.0,0.00025221,2]
[390855306,1760178721239,-500.0,0.00025221,2]
[390855307,1760178721248,-1003.64926793,0.00025221,2]
[390855308,1760178721258,-1000.0,0.00025221,2]
[390855309,1760178721268,-1000.0,0.00025221,2]
[390855310,1760178721277,-1000.0,0.00025221,2]
[390855311,1760178721286,-1000.0,0.00025221,2]
[390855312,1760178721296,-1000.0,0.00025221,2]
[390855313,1760178721305,-642.90531971,0.00025221,2]
[390855314,1760178721315,-1000.0,0.00025221,2]
[390855315,1760178721324,-500.0,0.00025221,2]
[390855316,1760178721334,-1000.0,0.00025221,2]
[390855317,1760178721343,-500.0,0.00025279,5]
[390855318,1760178721353,-155.030807,0.00025374,9]
[390855319,1760178721363,-2490.85788972,0.00025392,2]
[390855320,1760178721374,-2609.37557469,0.000254,7]
[390855321,1760178721384,-2609.37557469,0.000254,3]
[390855322,1760178721394,-300.0,0.00025421,2]
[390855323,1760178721404,-250.0,0.00025421,2]
[390855324,1760178721414,-6190.96289849,0.0002549,2]
[390855325,1760178721423,-500.0,0.00025553,5]
[390855326,1760178721434,-6345.2823843,0.0002557,2]
[390855327,1760178721443,-219.0,0.0002562,2]
[390855328,1760178721453,-155.030807,0.00025711,9]
[390855329,1760178721462,-151.326529,0.00025711,9]
[390855330,1760178721472,-219.0,0.00025745,2]
[390855331,1760178721481,-219.0,0.00025748,2]
[390855332,1760178721490,-500.0,0.00025768,2]
[390855333,1760178721499,-500.0,0.00025768,2]
[390855334,1760178721508,-1500.0,0.00025768,2]
[390855335,1760178721518,-1500.0,0.00025768,2]
[390855336,1760178722046,-1500.0,0.00025768,2]
[390855337,1760178722061,-500.0,0.00025768,2]
[390855338,1760178722073,-470.12144283,0.0002578,2]
[390855339,1760178722084,-3996.43224542,0.0002578,2]
[390855340,1760178722096,-155.030807,0.0002581,3]
[390855341,1760178722107,-500.0,0.00025827,5]
[390855342,1760178722116,-1354.0,0.00025845,7]
[390855343,1760178722125,-166.46220106,0.0002587,5]
[390855344,1760178722135,-1354.0,0.00025874,7]
[390855345,1760178722144,-1000.0,0.00025926,2]
[390855346,1760178722154,-450.0,0.00025968,2]
[390855347,1760178722167,-350.0,0.00025968,2]
[390855348,1760178722182,-9300.37,0.00026027,2]
[390855349,1760178722191,-155.030807,0.00026048,9]
[390855350,1760178722201,-151.326529,0.00026048,9]
[390855351,1760178722210,-500.0,0.00026101,5]
[390855352,1760178722220,-1000.0,0.0002618,30]
[390855353,1760178722230,-244.0,0.0002618,30]
[390855354,1760178722239,-219.0,0.00026192,2]
[390855355,1760178722248,-2609.37557469,0.000262,7]
[390855356,1760178722258,-2609.37557469,0.000262,3]
[390855357,1760178722267,-219.0,0.00026266,2]
[390855358,1760178722276,-2000.0,0.00026316,2]
[390855359,1760178722286,-2000.0,0.00026316,2]
[390855360,1760178722296,-219.0,0.00026328,2]
[390855361,1760178722306,-155.030807,0.00026366,3]
[390855362,1760178722316,-151.326529,0.00026366,3]
[390855363,1760178722326,-500.0,0.00026375,5]
[390855364,1760178722336,-3996.43224542,0.00026392,2]
[390855365,1760178722346,-1354.0,0.00026471,2]
[390855366,1760178722356,-600.0,0.00026516,2]
[390855367,1760178722368,-450.0,0.00026516,2]
[390855368,1760178722377,-219.0,0.00026591,7]
[390855369,1760178722387,-499.999999,0.000266,3]
[390855370,1760178722396,-500.0,0.00026649,5]
[390855371,1760178722406,-166.46220105,0.00026671,5]
[390855372,1760178722415,-4286.148401,0.00026683,2]
[390855373,1760178722425,-174.756,0.00026774,2]
[390855374,1760178722435,-486.737859,0.00026779,2]
[390855375,1760178722443,-219.0,0.0002683,2]
[390855376,1760178722453,-2500.0,0.00026864,2]
[390855377,1760178722462,-1505.68056906,0.00026864,2]
[390855378,1760178722471,-155.030807,0.00026921,3]
[390855379,1760178722480,-151.326529,0.00026921,3]
[390855380,1760178722489,-500.0,0.00026923,5]
[390855381,1760178722499,-3996.43224542,0.00027003,2]
[390855382,1760178722508,-827.0321429,0.00027064,2]
[390855383,1760178722516,-550.0,0.00027064,2]
[390855384,1760178722526,-219.0,0.00027119,2]
[390855385,1760178722535,-1000.0,0.00027123,10]
[390855386,1760178722544,-1000.0,0.00027123,10]
[390855387,1760178722553,-1000.0,0.00027123,10]
[390855388,1760178722562,-1000.0,0.00027123,10]
[390855389,1760178722571,-1000.0,0.00027123,10]
[390855390,1760178722580,-1000.0,0.00027123,10]
[390855391,1760178722589,-1000.0,0.00027123,10]
[390855392,1760178722598,-1000.0,0.00027123,10]
[390855393,1760178722608,-1000.0,0.00027123,10]
[390855394,1760178722619,-1000.0,0.00027123,10]
[390855395,1760178722628,-1000.0,0.00027123,10]
[390855396,1760178722638,-1000.0,0.00027123,10]
[390855397,1760178722647,-1000.0,0.00027123,10]
[390855398,1760178722658,-1000.0,0.00027123,10]
[390855399,1760178722669,-370.53442593,0.00027123,10]
[390855400,1760178722679,-9300.37,0.00027123,4]
[390855401,1760178722690,-1354.0,0.0002715,2]
[390855402,1760178722704,-679.58595413,0.00027161,2]
[390855403,1760178722720,-232.20576518,0.00027161,2]
[390855404,1760178722731,-510.61,0.00027197,5]
[390855405,1760178722743,-2609.37557469,0.000272,10]
[390855406,1760178722754,-168.0,0.00027206,2]